bitfinex/quotes_SOLUSD_20251201
["timestamp","ask_amount","ask_price","bid_price","bid_amount"]
[1764594213323,6.60119726,127.47,127.43,11.51119726]
[1764594213522,7.91119726,127.47,127.43,11.51119726]
[1764594213835,7.91119726,127.47,127.41,0.69]
[1764594213836,7.91119726,127.46,127.41,16.308864]
[1764594214054,7.84396431,127.49,127.43,7.91119726]
[1764594214217,7.91119726,127.44,127.41,16.998864]
[1764594214418,27.45175357,127.5,127.42,0.14216157]
[1764594215432,0.69,127.49,127.42,0.14216157]
[1764594215615,7.91119726,127.43,127.41,16.308864]
[1764594215820,7.91119726,127.42,127.41,16.308864]
[1764594216439,7.91119726,127.42,127.4,11.44917181]
[1764594216643,7.91119726,127.42,127.41,16.45102557]
[1764594216844,7.91119726,127.42,127.41,17.14102557]
[1764594217024,7.91119726,127.42,127.41,16.45102557]
[1764594217229,7.91119726,127.42,127.4,3.6]
[1764594217426,7.91119726,127.41,127.4,3.6]
[1764594217636,7.91119726,127.41,127.4,3.74216157]
[1764594217844,0.69,127.47,127.4,4.43216157]
[1764594218040,87.12183446,127.52,127.4,20.05102557]
[1764594218041,7.91119726,127.41,127.4,20.05102557]
[1764594218361,67.51561621,127.52,127.4,20.05102557]
[1764594218639,0.69,127.5,127.43,16.308864]
[1764594218827,7.91119726,127.44,127.42,16.308864]
[1764594219138,7.91119726,127.43,127.4,3.6]
[1764594219339,7.91119726,127.41,127.4,3.6]
[1764594220419,8.80994492,127.46,127.4,3.6]
[1764594220624,7.91119726,127.43,127.41,0.69]
[1764594220918,0.69,127.48,127.42,0.14216157]
[1764594220919,8.53439356,127.48,127.42,0.14216157]
[1764594221120,0.69,127.47,127.42,0.14216157]
[1764594221945,24.22006126,127.52,127.43,0.69]
[1764594221946,0.69,127.52,127.43,0.69]
[1764594222117,28.12806835,127.56,127.48,16.308864]
[1764594222427,0.1,127.57,127.49,20.74102557]
[1764594222428,12.35225434,127.51,127.49,20.74102557]
[1764594222747,12.35225434,127.5,127.49,3.6]
[1764594223117,12.35225434,127.53,127.49,3.74216157]
[1764594223322,12.35225434,127.54,127.53,16.45102557]
[1764594223543,0.1,127.57,127.53,20.05102557]
[1764594223744,12.35225434,127.54,127.53,20.05102557]
[1764594224222,0.1,127.57,127.53,60.39520951]
[1764594224418,0.1,127.57,127.56,16.45102557]
[1764594224632,0.1,127.57,127.56,0.14216157]
[1764594224847,0.1,127.57,127.56,17.14102557]
[1764594225035,0.1,127.57,127.56,29.49327991]
[1764594225846,0.1,127.57,127.56,4.45216157]
[1764594226021,0.1,127.57,127.56,40.95272801]
[1764594227145,0.1,127.57,127.56,28.60047367]
[1764594227336,0.1,127.57,127.54,0.69]
[1764594227524,12.45225434,127.57,127.56,3.62]
[1764594227730,0.1,127.57,127.56,19.928864]
[1764594228426,0.1,127.57,127.56,24.64386401]
[1764594228627,0.1,127.57,127.56,40.95272801]
[1764594228842,0.1,127.57,127.56,24.64386401]
[1764594229035,0.1,127.57,127.56,40.95272801]
[1764594229242,0.1,127.57,127.56,28.60047367]
[1764594229638,0.1,127.57,127.56,40.95272801]
[1764594230029,0.1,127.57,127.56,28.60047367]
[1764594230346,0.1,127.57,127.56,17.14102557]
[1764594230554,12.45225434,127.57,127.5,19.6073117]
[1764594230726,12.35225434,127.55,127.51,15.97225434]
[1764594230929,12.35225434,127.55,127.51,4.31]
[1764594231129,0.79,127.57,127.53,16.308864]
[1764594231354,0.1,127.57,127.56,16.308864]
[1764594231568,4.70361246,127.64,127.57,0.14216157]
[1764594231772,12.35225434,127.61,127.58,3.62]
[1764594232058,5.39361246,127.64,127.59,7.97960332]
[1764594232245,12.35225434,127.61,127.58,3.62]
[1764594232443,4.70361246,127.64,127.59,0.14216157]
[1764594232632,4.70361246,127.64,127.59,0.75216157]
[1764594232836,4.70361246,127.64,127.62,0.14216157]
[1764594233040,4.70361246,127.64,127.63,3.76216157]
[1764594233232,4.70361246,127.64,127.63,19.928864]
[1764594233652,17.0558668,127.64,127.63,19.928864]
[1764594233853,4.70361246,127.64,127.63,19.928864]
[1764594234152,4.70361246,127.64,127.63,3.62]
[1764594234460,4.70361246,127.64,127.63,20.07102557]
[1764594235658,4.70361246,127.64,127.63,3.62]
[1764594235833,17.7058668,127.64,127.58,0.61]
[1764594236034,12.35225434,127.62,127.59,3.62]
[1764594236254,12.35225434,127.61,127.56,12.35225434]
[1764594236454,0.65,127.62,127.57,3.62]
[1764594237236,12.35225434,127.6,127.57,3.62]
[1764594237437,13.00225434,127.62,127.56,3.62]
[1764594237632,12.35225434,127.57,127.49,8.45375245]
[1764594237860,12.35225434,127.55,127.5,3.62]
[1764594238059,12.35225434,127.53,127.5,3.62]
[1764594238356,12.35225434,127.53,127.49,28.66111834]
[1764594238657,12.35225434,127.54,127.51,3.62]
[1764594239252,13.00225434,127.55,127.52,0.14216157]
[1764594240356,0.65,127.59,127.54,12.35225434]
[1764594240555,12.35225434,127.59,127.56,16.308864]
[1764594240940,12.35225434,127.57,127.54,16.308864]
[1764594241133,0.65,127.58,127.56,3.62]
[1764594241332,39.77795421,127.62,127.56,3.62]
[1764594241333,0.65,127.57,127.56,3.62]
[1764594241842,0.65,127.57,127.56,1.88]
[1764594242154,7.83760482,127.59,127.56,3.62]
[1764594242346,12.35225434,127.57,127.49,8.51374936]
[1764594242540,12.35225434,127.57,127.46,19.61252692]
[1764594242541,12.35225434,127.51,127.46,20.28252692]
[1764594242762,0.55,127.58,127.47,12.13489684]
[1764594242942,12.35225434,127.51,127.47,12.13489684]
[1764594243152,9.35994492,127.57,127.47,3.62]
[1764594243351,12.35225434,127.5,127.48,16.308864]
[1764594244162,8.39183274,127.53,127.47,3.62]
[1764594244465,12.35225434,127.5,127.48,16.308864]
[1764594244663,0.55,127.52,127.48,16.308864]
[1764594244893,12.35225434,127.5,127.48,16.308864]
[1764594245160,12.35225434,127.51,127.48,16.308864]
[1764594245462,12.35225434,127.5,127.49,3.62]
[1764594246445,8.39196362,127.52,127.49,3.62]
[1764594246763,4.70361246,127.64,127.49,3.62]
[1764594246764,7.83514847,127.63,127.55,0.14216157]
[1764594246963,25.44057257,127.64,127.59,12.35225434]
[1764594247136,0.55,127.63,127.6,3.62]
[1764594247336,7.83576241,127.62,127.58,3.62]
[1764594247833,12.35225434,127.6,127.58,3.62]
[1764594248034,12.35225434,127.6,127.53,19.6026556]
[1764594248035,0.55,127.61,127.51,3.62]
[1764594248255,20.18801675,127.62,127.51,3.62]
[1764594248256,8.80994492,127.59,127.51,3.62]
[1764594248446,12.35225434,127.55,127.51,15.97225434]
[1764594248667,59.70628679,127.62,127.51,3.62]
[1764594248668,0.55,127.58,127.51,3.62]
[1764594248834,98.88509888,127.62,127.51,3.62]
[1764594248835,27.42516845,127.62,127.55,12.35225434]
[1764594249164,7.83520925,127.63,127.57,0.14216157]
[1764594249371,7.83520925,127.63,127.59,12.35225434]
[1764594249561,7.83520925,127.63,127.6,12.35225434]
[1764594249861,7.83520925,127.63,127.6,3.62]
[1764594250161,17.0558668,127.64,127.6,3.62]
[1764594250535,12.35225434,127.63,127.6,3.62]
[1764594250762,4.70361246,127.64,127.6,15.97225434]
[1764594251065,4.70361246,127.64,127.61,0.67]
[1764594251369,4.70361246,127.64,127.63,12.35225434]
[1764594251861,3.98361246,127.64,127.63,13.16441591]
[1764594252036,0.1,127.65,127.63,13.16441591]
[1764594252244,0.65,127.81,127.68,16.45102557]
[1764594252445,0.65,127.8,127.74,16.308864]
[1764594252742,0.65,127.8,127.76,12.35225434]
[1764594252940,0.65,127.8,127.77,12.35225434]
[1764594253165,0.65,127.8,127.75,3.62]
[1764594253375,8.47475139,127.8,127.75,3.62]
[1764594253542,12.35225434,127.76,127.72,3.62]
[1764594253845,3.62,127.85,127.72,3.62]
[1764594253846,0.65,127.83,127.77,16.308864]
[1764594254178,0.65,127.83,127.79,12.35225434]
[1764594254471,0.65,127.83,127.76,0.14216157]
[1764594254472,12.35225434,127.81,127.76,12.35225434]
[1764594254677,8.80994492,127.82,127.74,15.97225434]
[1764594254842,12.35225434,127.77,127.72,12.35225434]
[1764594255043,12.35225434,127.75,127.71,3.62]
[1764594255270,0.65,127.75,127.69,3.62]
[1764594255554,0.65,127.75,127.64,1.99999999]
[1764594255555,12.35225434,127.85,127.77,16.308864]
[1764594255752,0.65,127.84,127.75,0.14216157]
[1764594255958,12.35225434,127.81,127.74,16.308864]
[1764594256260,0.65,127.84,127.75,12.35225434]
[1764594256261,12.35225434,127.79,127.75,12.35225434]
[1764594256464,0.65,127.78,127.73,15.97225434]
[1764594256673,12.35225434,127.76,127.71,12.35225434]
[1764594256858,12.35225434,127.75,127.71,12.35225434]
[1764594257167,12.35225434,127.75,127.7,15.97225434]
[1764594257463,0.65,127.74,127.7,15.97225434]
[1764594257964,13.00225434,127.74,127.69,16.308864]
[1764594258161,13.00225434,127.74,127.69,28.66111834]
[1764594258478,0.65,127.8,127.72,0.14216157]
[1764594258644,0.65,127.8,127.76,12.35225434]
[1764594258965,13.00225434,127.8,127.75,12.35225434]
[1764594259172,13.00225434,127.8,127.77,12.35225434]
[1764594259173,0.65,127.8,127.77,12.35225434]
[1764594259371,8.47474796,127.8,127.77,12.35225434]
[1764594259662,7.82401802,127.82,127.77,12.35225434]
[1764594259889,0.65,127.81,127.74,24.80725819]
[1764594260049,0.65,127.81,127.78,12.35225434]
[1764594260251,0.65,127.81,127.77,12.35225434]
[1764594260455,13.00225434,127.81,127.74,16.308864]
[1764594260756,12.35225434,127.8,127.75,12.35225434]
[1764594260951,0.65,127.8,127.75,12.35225434]
[1764594261278,8.47573471,127.79,127.75,12.35225434]
[1764594261446,0.65,127.79,127.76,12.35225434]
[1764594261773,12.35225434,127.81,127.73,11.44898333]
[1764594261774,0.65,127.78,127.74,12.35225434]
[1764594262172,0.65,127.78,127.75,12.35225434]
[1764594262846,0.65,127.78,127.74,12.35225434]
[1764594263048,0.65,127.78,127.73,3.62]
[1764594263348,8.47598388,127.78,127.75,12.35225434]
[1764594263567,8.47598388,127.78,127.74,12.35225434]
[1764594263852,8.47598388,127.78,127.75,12.35225434]
[1764594264265,0.65,127.78,127.75,12.35225434]
[1764594264853,7.82478348,127.8,127.76,12.35225434]
[1764594265169,20.21028479,127.81,127.78,12.35225434]
[1764594265170,0.65,127.81,127.78,12.35225434]
[1764594265381,20.82647287,127.81,127.74,0.14216157]
[1764594265563,12.35225434,127.77,127.71,12.35225434]
[1764594265755,12.35225434,127.73,127.68,12.35225434]
[1764594265974,12.35225434,127.73,127.65,0.67]
[1764594265975,12.35225434,127.69,127.65,7.83354238]
[1764594266154,12.35225434,127.68,127.65,3.62]
[1764594266348,12.35225434,127.67,127.63,24.14384609]
[1764594266544,12.35225434,127.68,127.63,7.83498209]
[1764594266748,12.35225434,127.66,127.62,3.62]
[1764594266957,12.35225434,127.67,127.62,3.62]
[1764594267177,12.35225434,127.67,127.62,15.97225434]
[1764594267558,13.05225434,127.66,127.62,19.928864]
[1764594267763,28.11264307,127.68,127.62,19.928864]
[1764594268064,12.35225434,127.65,127.62,19.928864]
[1764594268265,12.35225434,127.64,127.62,19.928864]
[1764594268448,12.35225434,127.64,127.59,20.18952345]
[1764594268449,12.35225434,127.64,127.59,11.45726911]
[1764594268645,13.05225434,127.64,127.59,11.45726911]
[1764594269077,12.35225434,127.63,127.6,16.308864]
[1764594269247,13.05225434,127.63,127.6,16.308864]
[1764594269651,13.05225434,127.63,127.59,3.62]
[1764594269952,20.18706596,127.64,127.6,16.308864]
[1764594270163,0.7,127.68,127.6,17.018864]
[1764594270367,0.7,127.66,127.6,12.35225434]
[1764594270566,12.35225434,127.65,127.6,12.35225434]
[1764594270761,12.35225434,127.64,127.59,15.97225434]
[1764594270975,0.7,127.63,127.59,15.97225434]
[1764594271176,0.7,127.63,127.59,3.62]
[1764594271380,12.35225434,127.62,127.59,3.62]
[1764594271573,12.35225434,127.62,127.57,12.55225434]
[1764594271882,0.7,127.61,127.57,12.55225434]
[1764594272187,7.83425987,127.65,127.58,0.71]
[1764594272188,12.35225434,127.65,127.58,0.71]
[1764594272383,12.35225434,127.65,127.6,12.35225434]
[1764594272781,13.05225434,127.65,127.6,12.35225434]
[1764594272964,12.35225434,127.67,127.63,12.35225434]
[1764594273159,13.05225434,127.68,127.63,12.35225434]
[1764594273360,0.7,127.71,127.66,12.35225434]
[1764594273576,12.35225434,127.7,127.64,0.71]
[1764594273779,13.05225434,127.71,127.66,12.35225434]
[1764594273978,12.35225434,127.7,127.65,3.62]
[1764594274290,0.7,127.7,127.65,3.62]
[1764594274465,0.7,127.7,127.65,15.97225434]
[1764594274660,12.35225434,127.68,127.63,16.308864]
[1764594274908,0.7,127.7,127.63,28.66111834]
[1764594275079,12.35225434,127.68,127.63,28.66111834]
[1764594275265,0.71,127.67,127.63,28.66111834]
[1764594275466,7.83330722,127.66,127.62,19.928864]
[1764594275704,20.18556156,127.66,127.62,19.928864]
[1764594275908,13.06225434,127.65,127.59,15.97225434]
[1764594276082,0.71,127.65,127.6,12.35225434]
[1764594276388,13.06225434,127.65,127.6,12.35225434]
[1764594277098,0.71,127.65,127.61,12.35225434]
[1764594278568,13.06225434,127.65,127.6,28.66111834]
[1764594278889,8.54407287,127.65,127.6,28.66111834]
[1764594279067,0.71,127.64,127.61,12.35225434]
[1764594280096,0.71,127.66,127.62,12.35225434]
[1764594280287,0.71,127.65,127.62,12.35225434]
[1764594281673,0.71,127.65,127.61,7.83633738]
[1764594281674,0.71,127.65,127.61,20.18859172]
[1764594281990,0.71,127.65,127.61,24.14520138]
[1764594282195,8.54402975,127.65,127.61,28.66111834]
[1764594282871,0.71,127.69,127.62,4.3]
[1764594283070,0.71,127.69,127.65,12.35225434]
[1764594283275,0.71,127.69,127.63,0.14216157]
[1764594283476,0.71,127.69,127.64,12.35225434]
[1764594283681,13.06225434,127.69,127.64,12.35225434]
[1764594283884,0.71,127.69,127.64,12.35225434]
[1764594284085,0.71,127.68,127.64,12.35225434]
[1764594284474,0.71,127.68,127.63,7.8348373]
[1764594284678,0.71,127.68,127.62,11.5777417]
[1764594284679,16.40756674,127.68,127.62,11.5777417]
[1764594284877,16.40756674,127.68,127.63,7.86500336]
[1764594285190,0.71,127.67,127.63,7.86500336]
[1764594285693,16.40789881,127.67,127.62,11.46500336]
[1764594285902,7.83216743,127.68,127.64,7.86500336]
[1764594286103,8.54216743,127.68,127.64,7.86500336]
[1764594286399,7.83216743,127.68,127.64,7.86500336]
[1764594286588,8.54216743,127.68,127.65,7.86500336]
[1764594286788,0.71,127.67,127.63,7.97704244]
[1764594286986,0.71,127.67,127.63,7.86500336]
[1764594287190,0.71,127.67,127.64,7.86500336]
[1764594287491,0.71,127.67,127.63,7.86500336]
[1764594287692,7.86500336,127.64,127.56,0.7]
[1764594287896,8.57500336,127.63,127.57,11.63867436]
[1764594288083,8.57500336,127.63,127.57,11.66500336]
[1764594288084,7.86500336,127.62,127.57,11.66500336]
[1764594288278,7.86500336,127.61,127.57,3.8]
[1764594288474,7.86500336,127.6,127.57,3.8]
[1764594288676,8.57500336,127.6,127.57,3.8]
[1764594288894,16.41260818,127.59,127.57,0.2]
[1764594289278,0.71,127.58,127.57,0.2]
[1764594290183,8.57500336,127.58,127.57,0.2]
[1764594290600,8.57500336,127.58,127.5,0.2]
[1764594290782,7.86500336,127.56,127.51,7.86500336]
[1764594290982,7.84006272,127.55,127.51,7.86500336]
[1764594291179,7.86500336,127.56,127.52,7.86500336]
[1764594291180,0.71,127.56,127.52,7.86500336]
[1764594291389,0.71,127.55,127.51,24.17386736]
[1764594291590,7.86500336,127.54,127.5,0.2]
[1764594291791,0.71,127.55,127.5,0.2]
[1764594291999,7.86500336,127.53,127.5,0.2]
[1764594292512,0.71,127.52,127.5,0.2]
[1764594293003,15.70617161,127.54,127.5,0.2]
[1764594293201,16.41617161,127.54,127.5,0.2]
[1764594293508,8.57500336,127.53,127.5,0.2]
[1764594293688,0.71,127.52,127.5,0.2]
[1764594294084,8.57500336,127.52,127.5,0.2]
[1764594294587,8.57500336,127.51,127.5,0.2]
[1764594295106,16.41752551,127.51,127.5,0.2]
[1764594296018,9.86500335,127.46,127.42,7.86500336]
[1764594296197,1.99999999,127.46,127.4,16.308864]
[1764594296513,7.86500336,127.47,127.4,16.308864]
[1764594296514,1.99999999,127.47,127.4,16.308864]
[1764594296706,1.99999999,127.47,127.43,7.86500336]
[1764594296879,9.86500335,127.47,127.4,16.308864]
[1764594297079,1.99999999,127.48,127.45,7.86500336]
[1764594297294,1.99999999,127.51,127.47,7.86500336]
[1764594297479,1.99999999,127.52,127.49,7.86500336]
[1764594297684,1.99999999,127.52,127.48,7.86500336]
[1764594297885,1.99999999,127.52,127.46,0.14216157]
[1764594298215,9.86500335,127.52,127.47,7.86500336]
[1764594298592,7.86500336,127.49,127.45,16.308864]
[1764594298821,1.99999999,127.49,127.45,24.17386736]
[1764594299122,9.84450992,127.48,127.44,3.6]
[1764594299413,1.99999999,127.48,127.44,11.46500336]
[1764594299611,9.86500335,127.49,127.44,11.46500336]
[1764594299919,1.99999999,127.48,127.45,7.86500336]
[1764594300102,7.86500336,127.5,127.47,7.86500336]
[1764594300103,1.99999999,127.5,127.47,7.86500336]
[1764594300410,9.86500335,127.49,127.44,11.46500336]
[1764594300616,1.99999999,127.47,127.44,7.86500336]
[1764594301108,1.99999999,127.51,127.47,0.14216157]
[1764594301310,1.99999999,127.56,127.5,7.86500336]
[1764594301608,1.99999999,127.6,127.55,7.86500336]
[1764594301820,1.99999999,127.59,127.55,3.6]
[1764594301986,1.99999999,127.61,127.56,0.14216157]
[1764594302188,1.99999999,127.6,127.59,7.86500336]
[1764594302618,1.99999999,127.59,127.49,3.6]
[1764594302909,1.99999999,127.56,127.53,7.86500336]
[1764594303085,1.99999999,127.56,127.54,7.86500336]
[1764594303282,1.99999999,127.56,127.53,7.86500336]
[1764594303490,1.99999999,127.54,127.5,0.14216157]
[1764594303687,1.99999999,127.55,127.52,7.86500336]
[1764594304308,1.99999999,127.53,127.49,19.908864]
[1764594304614,1.99999999,127.53,127.51,7.86500336]
[1764594304805,1.99999999,127.55,127.52,7.86500336]
[1764594305111,1.99999999,127.56,127.54,7.86500336]
[1764594305298,1.99999999,127.55,127.53,7.86500336]
[1764594305493,9.83890356,127.57,127.53,7.86500336]
[1764594305700,1.99999999,127.54,127.52,7.86500336]
[1764594307193,1.99999999,127.55,127.52,7.86500336]
[1764594307409,1.99999999,127.54,127.52,7.86500336]
[1764594307908,1.99999999,127.55,127.52,7.86500336]
[1764594308323,1.99999999,127.55,127.53,7.86500336]
[1764594308818,7.83967977,127.56,127.51,0.14216157]
[1764594308819,1.99999999,127.54,127.51,7.86500336]
[1764594308995,1.99999999,127.54,127.5,7.86500336]
[1764594309198,1.99999999,127.53,127.49,19.30853275]
[1764594309398,1.99999999,127.52,127.51,7.86500336]
[1764594309624,1.99999999,127.52,127.5,7.86500336]
[1764594309813,1.99999999,127.5,127.46,7.86500336]
[1764594310004,1.99999999,127.5,127.39,39.24784384]
[1764594310005,1.99999999,127.5,127.45,11.46500336]
[1764594310323,1.99999999,127.47,127.45,3.6]
[1764594310799,1.99999999,127.46,127.42,11.46500336]
[1764594310999,1.99999999,127.47,127.44,7.86500336]
[1764594311199,1.99999999,127.46,127.44,7.86500336]
[1764594311400,1.99999999,127.46,127.43,8.00716493]
[1764594311813,1.99999999,127.46,127.43,7.86500336]
[1764594312215,1.99999999,127.47,127.44,7.86500336]
[1764594312619,1.99999999,127.47,127.42,3.6]
[1764594312922,9.86500335,127.45,127.41,11.46500336]
[1764594313105,9.86500335,127.45,127.41,3.6]
[1764594313307,9.84628636,127.45,127.41,11.46500336]
[1764594313508,1.99999999,127.43,127.41,3.6]
[1764594313819,1.99999999,127.43,127.39,7.86500336]
[1764594314026,1.99999999,127.43,127.38,3.6]
[1764594314331,1.99999999,127.42,127.39,7.86500336]
[1764594314622,1.99999999,127.42,127.38,11.46500336]
[1764594315500,1.99999999,127.42,127.4,7.86500336]
[1764594315707,1.99999999,127.43,127.4,7.86500336]
[1764594315902,1.99999999,127.42,127.4,7.86500336]
[1764594316103,1.99999999,127.43,127.41,7.86500336]
[1764594316299,1.99999999,127.46,127.39,0.14216157]
[1764594316502,1.99999999,127.44,127.41,7.86500336]
[1764594316717,1.99999999,127.43,127.4,7.86500336]
[1764594317158,1.99999999,127.45,127.42,7.86500336]
[1764594317619,1.99999999,127.43,127.41,7.86500336]
[1764594317802,1.99999999,127.43,127.4,7.86500336]
[1764594318514,1.99999999,127.43,127.41,7.86500336]
[1764594320227,1.99999999,127.45,127.41,7.86500336]
[1764594320429,7.84707019,127.44,127.42,7.86500336]
[1764594320626,1.99999999,127.43,127.41,7.86500336]
[1764594321333,1.99999999,127.43,127.42,7.86500336]
[1764594321517,9.84647821,127.45,127.41,7.86500336]
[1764594321830,1.99999999,127.43,127.4,7.86500336]
[1764594322132,1.99999999,127.43,127.41,7.86500336]
[1764594322307,1.99999999,127.43,127.39,7.84990972]
[1764594322707,1.99999999,127.43,127.4,7.86500336]
[1764594322908,7.84787538,127.43,127.4,7.86500336]
[1764594323129,9.84787537,127.43,127.4,7.86500336]
[1764594323940,9.84787537,127.43,127.39,3.58]
[1764594324139,9.84787537,127.43,127.4,7.86500336]
[1764594324842,1.99999999,127.42,127.4,7.86500336]
[1764594325648,9.84837926,127.42,127.39,11.44500336]
[1764594325847,1.99999999,127.41,127.39,3.58]
[1764594326066,16.41338263,127.42,127.38,7.86500336]
[1764594326067,1.99999999,127.4,127.38,7.86500336]
[1764594326217,0.93573892,127.4,127.38,7.86500336]
[1764594326919,8.78526285,127.4,127.36,11.43128586]
[1764594327118,0.93573892,127.38,127.36,3.58]
[1764594327338,7.84952393,127.4,127.37,7.86500336]
[1764594327521,0.93573892,127.41,127.39,7.86500336]
[1764594327730,0.93573892,127.41,127.4,7.86500336]
[1764594328145,0.93573892,127.41,127.36,27.74014637]
[1764594328348,0.93573892,127.41,127.37,0.14216157]
[1764594328519,1.63573892,127.4,127.36,3.58]
[1764594328722,0.93573892,127.38,127.36,3.58]
[1764594328922,7.85114234,127.37,127.35,0.2]
[1764594329533,8.78639858,127.38,127.35,8.06500336]
[1764594330043,0.93573892,127.37,127.35,8.06500336]
[1764594330230,0.93573892,127.39,127.36,7.86500336]
[1764594330537,0.93573892,127.37,127.36,7.86500336]
[1764594331047,8.78572874,127.39,127.36,7.86500336]
[1764594331343,0.93573892,127.37,127.35,8.06500336]
[1764594331846,0.93573892,127.37,127.35,0.2]
[1764594332845,0.93573892,127.37,127.35,8.06500336]
[1764594333442,0.93573892,127.37,127.35,0.2]
[1764594333744,0.93573892,127.36,127.35,0.2]
[1764594333947,0.93573892,127.36,127.35,8.06500336]
[1764594335228,9.48749771,127.36,127.35,0.2]
[1764594335423,0.93573892,127.36,127.35,0.2]
[1764594335624,19.62432154,127.4,127.35,8.06500336]
[1764594335625,0.93573892,127.38,127.35,8.06500336]
[1764594335947,0.93573892,127.39,127.37,7.86500336]
[1764594336150,0.93573892,127.42,127.38,7.86500336]
[1764594336349,0.93573892,127.41,127.4,7.86500336]
[1764594336655,0.93573892,127.41,127.36,19.888864]
[1764594336858,1.63573892,127.4,127.36,11.44500336]
[1764594337160,8.78645918,127.38,127.36,3.58]
[1764594337630,9.48645918,127.38,127.35,8.06500336]
[1764594337958,1.63573892,127.37,127.35,0.2]
[1764594338126,0.93573892,127.36,127.35,8.06500336]
[1764594339061,0.93573892,127.39,127.36,0.14216157]
[1764594339361,0.93573892,127.39,127.38,7.86500336]
[1764594339565,7.84898869,127.41,127.38,7.86500336]
[1764594339566,8.78472761,127.41,127.38,7.86500336]
[1764594339753,0.93573892,127.39,127.38,7.86500336]
[1764594340160,0.93573892,127.39,127.37,7.86500336]
[1764594340356,0.7,127.38,127.36,7.86500336]
[1764594340547,0.93573892,127.38,127.36,7.86500336]
[1764594342242,8.78577352,127.39,127.37,7.86500336]
[1764594342445,8.78523231,127.4,127.38,7.86500336]
[1764594342847,0.93573892,127.4,127.39,7.86500336]
[1764594343263,0.93573892,127.4,127.37,0.7]
[1764594343465,0.93573892,127.4,127.39,7.86500336]
[1764594344378,7.84874579,127.41,127.37,8.55100866]
[1764594344546,0.93573892,127.4,127.38,7.86500336]
[1764594344954,8.54874579,127.41,127.39,7.86500336]
[1764594345152,0.93573892,127.4,127.38,7.86500336]
[1764594345377,0.93573892,127.39,127.36,3.58]
[1764594345566,0.93573892,127.38,127.36,11.44500336]
[1764594346062,1.63573892,127.38,127.36,11.44500336]
[1764594346449,0.93573892,127.38,127.36,15.95979236]
[1764594346874,0.93573892,127.38,127.36,3.58]
[1764594347074,8.78588852,127.39,127.36,15.95979236]
[1764594347250,0.93573892,127.38,127.36,3.58]
[1764594347875,1.63573892,127.38,127.36,3.58]
[1764594348068,0.93573892,127.38,127.36,3.58]
[1764594348373,0.93573892,127.38,127.36,15.95979236]
[1764594348674,8.78588852,127.39,127.36,15.95979236]
[1764594348867,0.93573892,127.38,127.36,15.95979236]
[1764594349363,0.93573892,127.38,127.36,3.58]
[1764594349560,0.93573892,127.38,127.37,12.37979236]
[1764594349761,0.93573892,127.38,127.36,3.58]
[1764594350064,0.93573892,127.38,127.36,15.95979236]
[1764594350372,1.63573892,127.37,127.36,3.58]
[1764594350570,0.93573892,127.37,127.36,3.58]
[1764594350957,1.63573892,127.37,127.36,3.58]
[1764594351865,9.48688126,127.37,127.36,3.58]
[1764594352358,0.93573892,127.37,127.36,15.95979236]
[1764594352568,8.78688126,127.37,127.36,3.58]
[1764594352853,9.48688126,127.37,127.35,12.57979236]
[1764594353056,1.63573892,127.36,127.35,0.2]
[1764594353258,0.93573892,127.36,127.35,0.2]
[1764594353958,8.78749771,127.36,127.35,0.2]
[1764594354155,9.48749771,127.36,127.35,0.2]
[1764594354770,1.63573892,127.36,127.35,0.2]
[1764594354981,9.48749771,127.36,127.35,0.2]
[1764594355862,21.86729007,127.36,127.35,0.2]
[1764594356268,1.63573892,127.36,127.35,1e-08]
[1764594356581,7.85136929,127.37,127.35,12.37979237]
[1764594356582,0.93573892,127.37,127.35,12.37979237]
[1764594356753,8.78697231,127.37,127.35,1e-08]
[1764594356959,0.93573892,127.37,127.35,12.37979237]
[1764594357157,0.93573892,127.36,127.35,12.37979237]
[1764594357870,0.93573892,127.36,127.35,1e-08]
[1764594358066,8.78749771,127.36,127.35,1e-08]
[1764594358274,8.78749771,127.36,127.35,12.37979237]
[1764594358576,0.93573892,127.39,127.35,13.07979237]
[1764594358770,0.93573892,127.38,127.36,15.93979236]
[1764594358975,0.93573892,127.37,127.36,3.56]
[1764594359764,1.65573892,127.37,127.36,3.56]
[1764594360186,9.50688126,127.37,127.36,3.56]
[1764594360371,0.93573892,127.36,127.35,1e-08]